[Event "*** Titled Tuesday Blitz"]
[Site "Chess.com"]
[Date "2020.04.28"]
[Round "3"]
[White "annacramling"]
[Black "Sweafty"]
[Result "1/2-1/2"]
[WhiteElo "1939"]
[BlackElo "2463"]
[TimeControl "180+1"]
[EndTime "10:30:01 PDT"]
[Termination "Game drawn by agreement"]

1. d4 {[%clk 0:03:00.9]} 1... d6 {[%clk 0:03:00.1]} 2. Nf3 {[%clk 0:03:00]} 2...
Nd7 {[%clk 0:03:00.3]} 3. c4 {[%clk 0:02:57.5]} 3... e5 {[%clk 0:02:59.1]} 4. e3
{[%clk 0:02:52.3]} 4... Ngf6 {[%clk 0:02:57.9]} 5. Nc3 {[%clk 0:02:51.9]} 5...
Be7 {[%clk 0:02:54.6]} 6. Be2 {[%clk 0:02:44]} 6... O-O {[%clk 0:02:52]} 7. O-O
{[%clk 0:02:44.2]} 7... c6 {[%clk 0:02:49]} 8. b3 {[%clk 0:02:17.2]} 8... Qc7
{[%clk 0:02:46.3]} 9. Bb2 {[%clk 0:02:17.4]} 9... Re8 {[%clk 0:02:45.5]} 10. Rc1
{[%clk 0:02:14]} 10... Bf8 {[%clk 0:02:39.5]} 11. a3 {[%clk 0:01:39.9]} 11... b6
{[%clk 0:02:22.8]} 12. b4 {[%clk 0:01:36.1]} 12... Bb7 {[%clk 0:02:20.8]} 13.
Qc2 {[%clk 0:01:17.6]} 13... Rad8 {[%clk 0:02:17.2]} 14. Qb1 {[%clk 0:01:09.1]}
14... g6 {[%clk 0:02:08.9]} 15. Rfe1 {[%clk 0:00:57.6]} 15... Bh6 {[%clk
0:01:58.6]} 16. dxe5 {[%clk 0:00:51]} 16... dxe5 {[%clk 0:01:54.5]} 17. Ne4
{[%clk 0:00:39]} 17... Bg7 {[%clk 0:01:46.5]} 18. Nxf6+ {[%clk 0:00:25]} 18...
Nxf6 {[%clk 0:01:44.1]} 19. Rcd1 {[%clk 0:00:25.7]} 19... Nd7 {[%clk 0:01:19]}
20. Qa1 {[%clk 0:00:18.7]} 20... f6 {[%clk 0:01:18.9]} 21. Rc1 {[%clk
0:00:15.4]} 21... c5 {[%clk 0:01:15.1]} 22. b5 {[%clk 0:00:12.7]} 22... Nf8
{[%clk 0:01:15]} 23. Rcd1 {[%clk 0:00:08.8]} 23... Ne6 {[%clk 0:01:14.5]} 24.
Qc1 {[%clk 0:00:07.4]} 24... h5 {[%clk 0:00:41.3]} 25. Rxd8 {[%clk 0:00:07.2]}
25... Rxd8 {[%clk 0:00:41]} 26. Rd1 {[%clk 0:00:08.1]} 26... Rd7 {[%clk
0:00:37.6]} 27. Rxd7 {[%clk 0:00:07.3]} 27... Qxd7 {[%clk 0:00:38.5]} 28. Qd1
{[%clk 0:00:07.9]} 28... Qxd1+ {[%clk 0:00:35.2]} 29. Bxd1 {[%clk 0:00:08.8]}
29... Be4 {[%clk 0:00:34.6]} 30. Be2 {[%clk 0:00:05.8]} 30... Bb7 {[%clk
0:00:31]} 31. Nh4 {[%clk 0:00:05.4]} 31... Kf7 {[%clk 0:00:29.5]} 32. Bd3 {[%clk
0:00:05]} 32... e4 {[%clk 0:00:20.9]} 33. Be2 {[%clk 0:00:05.2]} 33... Nf8
{[%clk 0:00:15.9]} 34. g3 {[%clk 0:00:04.4]} 34... Nd7 {[%clk 0:00:16]} 35. Ng2
{[%clk 0:00:04]} 35... Bf8 {[%clk 0:00:11.4]} 36. Nf4 {[%clk 0:00:03.9]} 36...
Bd6 {[%clk 0:00:11.6]} 37. h4 {[%clk 0:00:03.4]} 37... Ne5 {[%clk 0:00:12]} 38.
Kf1 {[%clk 0:00:03.3]} 38... a6 {[%clk 0:00:10]} 39. a4 {[%clk 0:00:02.7]} 39...
axb5 {[%clk 0:00:10.3]} 40. axb5 {[%clk 0:00:03.4]} 40... f5 {[%clk 0:00:09.9]}
41. Ke1 {[%clk 0:00:03.5]} 41... Bc8 {[%clk 0:00:09.2]} 42. Kd2 {[%clk
0:00:03.7]} 42... Be6 {[%clk 0:00:09.9]} 43. Kc3 {[%clk 0:00:02.1]} 43... Bd7
{[%clk 0:00:09.7]} 44. Bc1 {[%clk 0:00:02.3]} 44... Be6 {[%clk 0:00:10]} 45. Bb2
{[%clk 0:00:02.7]} 45... Bc7 {[%clk 0:00:10.1]} 46. Bc1 {[%clk 0:00:03.1]} 46...
Ng4 {[%clk 0:00:09.4]} 47. Bxg4 {[%clk 0:00:02.6]} 47... hxg4 {[%clk 0:00:10.3]}
48. Bd2 {[%clk 0:00:03]} 48... Be5+ {[%clk 0:00:10.4]} 49. Kb3 {[%clk
0:00:02.5]} 49... Bf6 {[%clk 0:00:10.7]} 50. Bc1 {[%clk 0:00:02.7]} 50... g5
{[%clk 0:00:10.9]} 51. hxg5 {[%clk 0:00:03.3]} 51... Bxg5 {[%clk 0:00:11.8]} 52.
Bd2 {[%clk 0:00:03.5]} 52... Bxf4 {[%clk 0:00:08.8]} 53. exf4 {[%clk 0:00:03.9]}
1/2-1/2

[Event "*** Titled Tuesday Blitz"]
[Site "Chess.com"]
[Date "2020.04.28"]
[Round "3"]
[White "Khamrakulov_Djurabek"]
[Black "druskacik"]
[Result "1-0"]
[WhiteElo "2818"]
[BlackElo "2541"]
[TimeControl "180+1"]
[EndTime "10:30:02 PDT"]
[Termination "Khamrakulov_Djurabek won on time"]

1. e4 {[%clk 0:03:00.9]} 1... e6 {[%clk 0:02:57.6]} 2. d4 {[%clk 0:03:00.5]}
2... d5 {[%clk 0:02:57.7]} 3. Nd2 {[%clk 0:03:01.1]} 3... Be7 {[%clk 0:02:57.3]}
4. e5 {[%clk 0:02:55.5]} 4... c5 {[%clk 0:02:57]} 5. c3 {[%clk 0:02:54.2]} 5...
Nc6 {[%clk 0:02:51.9]} 6. Bd3 {[%clk 0:02:54.2]} 6... cxd4 {[%clk 0:02:42.3]} 7.
cxd4 {[%clk 0:02:54]} 7... Qb6 {[%clk 0:02:42.9]} 8. Ndf3 {[%clk 0:02:53.9]}
8... Bd7 {[%clk 0:02:41.7]} 9. Ne2 {[%clk 0:02:53.6]} 9... Nb4 {[%clk
0:02:41.7]} 10. Bb1 {[%clk 0:02:50.2]} 10... Bb5 {[%clk 0:02:41.4]} 11. O-O
{[%clk 0:01:46.8]} 11... Qa6 {[%clk 0:02:41]} 12. Re1 {[%clk 0:01:46.9]} 12...
Nd3 {[%clk 0:02:41]} 13. Bxd3 {[%clk 0:01:46.9]} 13... Bxd3 {[%clk 0:02:41.9]}
14. Nf4 {[%clk 0:01:47.2]} 14... Bg6 {[%clk 0:02:41.7]} 15. a4 {[%clk
0:01:34.6]} 15... Nh6 {[%clk 0:02:32.5]} 16. h4 {[%clk 0:01:33.3]} 16... Rc8
{[%clk 0:02:17.6]} 17. Bd2 {[%clk 0:01:29]} 17... Bc2 {[%clk 0:01:59.1]} 18. Qc1
{[%clk 0:01:28.2]} 18... O-O {[%clk 0:01:53.9]} 19. Bc3 {[%clk 0:01:27.7]} 19...
Be4 {[%clk 0:01:46.1]} 20. Ng5 {[%clk 0:01:27.5]} 20... Nf5 {[%clk 0:01:35.8]}
21. Nxe4 {[%clk 0:01:15.4]} 21... dxe4 {[%clk 0:01:36.7]} 22. Rxe4 {[%clk
0:01:15.7]} 22... Bxh4 {[%clk 0:01:29.9]} 23. Qd1 {[%clk 0:00:43.5]} 23... Rfd8
{[%clk 0:01:19.8]} 24. Qg4 {[%clk 0:00:42.6]} 24... g6 {[%clk 0:01:19.4]} 25.
Qh3 {[%clk 0:00:40.1]} 25... Bg5 {[%clk 0:01:13.6]} 26. Nd3 {[%clk 0:00:36.9]}
26... Rxc3 {[%clk 0:00:41.7]} 27. bxc3 {[%clk 0:00:34.3]} 27... Qc6 {[%clk
0:00:42.6]} 28. Rg4 {[%clk 0:00:20.7]} 28... Qxc3 {[%clk 0:00:38.9]} 29. Rf1
{[%clk 0:00:16.7]} 29... Bd2 {[%clk 0:00:38.3]} 30. Nc5 {[%clk 0:00:16.5]} 30...
Qxh3 {[%clk 0:00:24.9]} 31. gxh3 {[%clk 0:00:17.4]} 31... Rxd4 {[%clk
0:00:20.3]} 32. Nxb7 {[%clk 0:00:17.1]} 32... Rd5 {[%clk 0:00:18.6]} 33. Rd1
{[%clk 0:00:14.7]} 33... Nd4 {[%clk 0:00:12.2]} 34. Kg2 {[%clk 0:00:13.5]} 34...
Ne2 {[%clk 0:00:11.8]} 35. Kf1 {[%clk 0:00:11.3]} 35... Nc3 {[%clk 0:00:11.9]}
36. Ra1 {[%clk 0:00:10.7]} 36... Rxe5 {[%clk 0:00:12.3]} 37. Rd4 {[%clk
0:00:10.8]} 37... Bg5 {[%clk 0:00:11.7]} 38. a5 {[%clk 0:00:10.9]} 38... Nd5
{[%clk 0:00:11.9]} 39. a6 {[%clk 0:00:11]} 39... Bf6 {[%clk 0:00:12.4]} 40. Rc4
{[%clk 0:00:10]} 40... Rf5 {[%clk 0:00:12.5]} 41. Ra3 {[%clk 0:00:09.7]} 41...
h5 {[%clk 0:00:11.4]} 42. Nd6 {[%clk 0:00:09.9]} 42... Re5 {[%clk 0:00:11]} 43.
Nc8 {[%clk 0:00:10]} 43... Be7 {[%clk 0:00:09.5]} 44. Rb3 {[%clk 0:00:08.4]}
44... Bh4 {[%clk 0:00:07.2]} 45. Nxa7 {[%clk 0:00:07.6]} 45... Nf6 {[%clk
0:00:03.1]} 46. Rxh4 {[%clk 0:00:07.1]} 46... Ne4 {[%clk 0:00:02.9]} 47. Nc6
{[%clk 0:00:06.4]} 47... Nd2+ {[%clk 0:00:01]} 48. Kg2 {[%clk 0:00:06.7]} 48...
Rg5+ {[%clk 0:00:01.2]} 49. Rg4 {[%clk 0:00:07]} 49... Rc5 {[%clk 0:00:01.8]}
50. a7 {[%clk 0:00:06.7]} 1-0

[Event "*** Titled Tuesday Blitz"]
[Site "Chess.com"]
[Date "2020.04.28"]
[Round "3"]
[White "onnoelgersma"]
[Black "Taran2004"]
[Result "0-1"]
[WhiteElo "2292"]
[BlackElo "2085"]
[TimeControl "180+1"]
[EndTime "10:30:02 PDT"]
[Termination "Taran2004 won on time"]

1. e4 {[%clk 0:03:00.9]} 1... c6 {[%clk 0:02:59.3]} 2. d4 {[%clk 0:02:58]} 2...
d5 {[%clk 0:02:59.2]} 3. e5 {[%clk 0:02:58.5]} 3... Bf5 {[%clk 0:02:57.6]} 4.
Nf3 {[%clk 0:02:58.7]} 4... e6 {[%clk 0:02:57.5]} 5. Be2 {[%clk 0:02:59.4]} 5...
Nd7 {[%clk 0:02:57.7]} 6. O-O {[%clk 0:02:59.6]} 6... c5 {[%clk 0:02:58.2]} 7.
dxc5 {[%clk 0:02:47]} 7... Bxc5 {[%clk 0:02:55.4]} 8. Nbd2 {[%clk 0:02:43.9]}
8... Ne7 {[%clk 0:02:54.8]} 9. Nb3 {[%clk 0:02:44.1]} 9... Bb6 {[%clk
0:02:54.6]} 10. c3 {[%clk 0:02:44]} 10... Nc6 {[%clk 0:02:54.2]} 11. Bf4 {[%clk
0:02:39.1]} 11... O-O {[%clk 0:02:53.7]} 12. a4 {[%clk 0:02:38.4]} 12... Bc7
{[%clk 0:02:36.2]} 13. Nbd4 {[%clk 0:02:12.7]} 13... Bg6 {[%clk 0:02:33.8]} 14.
Nxc6 {[%clk 0:02:10.2]} 14... bxc6 {[%clk 0:02:32.3]} 15. Re1 {[%clk 0:02:03.9]}
15... Qb8 {[%clk 0:02:31.2]} 16. Nd4 {[%clk 0:01:09.9]} 16... c5 {[%clk
0:02:22.8]} 17. Nc6 {[%clk 0:01:03]} 17... Qe8 {[%clk 0:02:21.8]} 18. b4 {[%clk
0:00:52.8]} 18... c4 {[%clk 0:02:17.5]} 19. Bg3 {[%clk 0:00:48.7]} 19... Nb8
{[%clk 0:02:13.1]} 20. Nd4 {[%clk 0:00:48.5]} 20... Nc6 {[%clk 0:02:12.6]} 21.
Bf3 {[%clk 0:00:41.3]} 21... Nxd4 {[%clk 0:02:10.3]} 22. cxd4 {[%clk 0:00:41]}
22... Qe7 {[%clk 0:02:10.1]} 23. Qd2 {[%clk 0:00:40.5]} 23... Rab8 {[%clk
0:02:09.5]} 24. b5 {[%clk 0:00:38.8]} 24... Rfc8 {[%clk 0:02:08.5]} 25. Qc3
{[%clk 0:00:38.6]} 25... Qd8 {[%clk 0:02:02.5]} 26. Rec1 {[%clk 0:00:23.3]}
26... Ba5 {[%clk 0:02:01.2]} 27. Qe3 {[%clk 0:00:23.4]} 27... Qe7 {[%clk
0:01:58.6]} 28. h4 {[%clk 0:00:22]} 28... h6 {[%clk 0:01:56.6]} 29. h5 {[%clk
0:00:21.5]} 29... Bh7 {[%clk 0:01:56.8]} 30. Bd1 {[%clk 0:00:19.3]} 30... Qb4
{[%clk 0:01:49]} 31. Bc2 {[%clk 0:00:19.3]} 31... Bxc2 {[%clk 0:01:48.6]} 32.
Rxc2 {[%clk 0:00:20.2]} 32... Qb3 {[%clk 0:01:49]} 33. Qxb3 {[%clk 0:00:19.6]}
33... cxb3 {[%clk 0:01:49.9]} 34. Rxc8+ {[%clk 0:00:19.4]} 34... Rxc8 {[%clk
0:01:50.8]} 35. Rb1 {[%clk 0:00:19.5]} 35... Rc3 {[%clk 0:01:45.8]} 36. Kf1
{[%clk 0:00:20.1]} 36... Bb4 {[%clk 0:01:42.8]} 37. Ke2 {[%clk 0:00:20.1]} 37...
Ba3 {[%clk 0:01:41.8]} 38. Bf4 {[%clk 0:00:20.7]} 38... b2 {[%clk 0:01:41]} 39.
Bd2 {[%clk 0:00:19.2]} 39... Rc4 {[%clk 0:01:39.7]} 40. Kd1 {[%clk 0:00:18.7]}
40... Rxd4 {[%clk 0:01:38.1]} 41. Kc2 {[%clk 0:00:19.4]} 41... Bb4 {[%clk
0:01:28.8]} 42. Be3 {[%clk 0:00:17.4]} 42... Rc4+ {[%clk 0:01:28.2]} 43. Kb3
{[%clk 0:00:17.4]} 43... Re4 {[%clk 0:01:27.4]} 44. Rxb2 {[%clk 0:00:16.7]}
44... d4 {[%clk 0:01:25.8]} 45. Bd2 {[%clk 0:00:12]} 45... Bc5 {[%clk
0:01:24.2]} 46. Kc4 {[%clk 0:00:10.5]} 46... Bb6 {[%clk 0:01:23.4]} 47. a5
{[%clk 0:00:11]} 47... Bd8 {[%clk 0:01:22.9]} 48. b6 {[%clk 0:00:10.2]} 48...
axb6 {[%clk 0:01:23.5]} 49. axb6 {[%clk 0:00:11.1]} 49... Bxb6 {[%clk
0:01:23.7]} 50. Rxb6 {[%clk 0:00:11.1]} 50... Rxe5 {[%clk 0:01:24.3]} 51. Kd3
{[%clk 0:00:11.2]} 51... Rxh5 {[%clk 0:01:24.3]} 52. Rb8+ {[%clk 0:00:10.9]}
52... Kh7 {[%clk 0:01:24.3]} 53. Rb7 {[%clk 0:00:11.5]} 53... Kg6 {[%clk
0:01:23.7]} 54. Rb4 {[%clk 0:00:11.9]} 54... e5 {[%clk 0:01:23.2]} 55. g4 {[%clk
0:00:09.3]} 55... Rh3+ {[%clk 0:01:22.4]} 56. Ke4 {[%clk 0:00:08.3]} 56... f6
{[%clk 0:01:22.6]} 57. Rb6 {[%clk 0:00:08.4]} 57... h5 {[%clk 0:01:20.3]} 58. g5
{[%clk 0:00:07.1]} 58... Rh4+ {[%clk 0:01:17.2]} 59. Kd5 {[%clk 0:00:06.1]}
59... Rh2 {[%clk 0:01:16.9]} 60. gxf6 {[%clk 0:00:05]} 60... gxf6 {[%clk
0:01:17.8]} 61. Be1 {[%clk 0:00:05.1]} 61... Rh1 {[%clk 0:01:14.6]} 62. Bd2
{[%clk 0:00:05.2]} 62... Rf1 {[%clk 0:01:14.4]} 63. f4 {[%clk 0:00:04.6]} 63...
Rf2 {[%clk 0:01:10.8]} 64. Bc1 {[%clk 0:00:04.1]} 64... d3 {[%clk 0:01:08]} 65.
fxe5 {[%clk 0:00:03.2]} 65... d2 {[%clk 0:01:08.2]} 66. Bxd2 {[%clk 0:00:01.7]}
66... Rxd2+ {[%clk 0:01:08]} 67. Ke4 {[%clk 0:00:02.3]} 67... Re2+ {[%clk
0:01:08.1]} 68. Kf4 {[%clk 0:00:02.2]} 68... Rxe5 {[%clk 0:01:08.6]} 69. Rb8
{[%clk 0:00:03.1]} 69... Rf5+ {[%clk 0:01:04.2]} 70. Kg3 {[%clk 0:00:03.1]}
70... Ra5 {[%clk 0:01:01.2]} 0-1

[Event "*** Titled Tuesday Blitz"]
[Site "Chess.com"]
[Date "2020.04.28"]
[Round "3"]
[White "Fh2411"]
[Black "Kate1606"]
[Result "1-0"]
[WhiteElo "2476"]
[BlackElo "2028"]
[TimeControl "180+1"]
[EndTime "10:30:03 PDT"]
[Termination "Fh2411 won by checkmate"]

1. d4 {[%clk 0:03:00.9]} 1... d6 {[%clk 0:02:57.6]} 2. Nf3 {[%clk 0:02:59.7]}
2... g6 {[%clk 0:02:55.9]} 3. g3 {[%clk 0:02:59.2]} 3... Bg7 {[%clk 0:02:55.9]}
4. Bg2 {[%clk 0:03:00.1]} 4... Nf6 {[%clk 0:02:55.8]} 5. O-O {[%clk 0:03:00.6]}
5... O-O {[%clk 0:02:56.1]} 6. c4 {[%clk 0:03:01.2]} 6... Nbd7 {[%clk
0:02:54.7]} 7. Nc3 {[%clk 0:03:01.2]} 7... c6 {[%clk 0:02:52.5]} 8. e4 {[%clk
0:03:01]} 8... e5 {[%clk 0:02:51.6]} 9. Re1 {[%clk 0:02:58.6]} 9... Qc7 {[%clk
0:02:41.5]} 10. h3 {[%clk 0:02:54.9]} 10... a6 {[%clk 0:02:37]} 11. d5 {[%clk
0:02:45.6]} 11... c5 {[%clk 0:02:25.6]} 12. Rb1 {[%clk 0:02:27.3]} 12... h6
{[%clk 0:02:18.8]} 13. Be3 {[%clk 0:02:19]} 13... Kh7 {[%clk 0:02:08.5]} 14. a3
{[%clk 0:02:11.4]} 14... Rb8 {[%clk 0:02:04.3]} 15. Qd3 {[%clk 0:02:09.3]} 15...
Nh5 {[%clk 0:01:45]} 16. Nd2 {[%clk 0:01:43.7]} 16... f5 {[%clk 0:01:43.3]} 17.
exf5 {[%clk 0:01:36.4]} 17... gxf5 {[%clk 0:01:41.3]} 18. g4 {[%clk 0:01:35.2]}
18... e4 {[%clk 0:01:28.1]} 19. Ndxe4 {[%clk 0:01:25.8]} 19... Ne5 {[%clk
0:01:21.7]} 20. Qc2 {[%clk 0:01:24.3]} 20... fxe4 {[%clk 0:01:14.2]} 21. Qxe4+
{[%clk 0:01:08.6]} 21... Kh8 {[%clk 0:01:13.2]} 22. gxh5 {[%clk 0:01:08.5]}
22... Bf5 {[%clk 0:01:12.4]} 23. Qh4 {[%clk 0:01:06.3]} 23... Bxb1 {[%clk
0:01:11.4]} 24. Rxb1 {[%clk 0:01:06.8]} 24... Rbe8 {[%clk 0:01:06.9]} 25. Kh1
{[%clk 0:01:01.8]} 25... Qe7 {[%clk 0:01:04.2]} 26. Qxe7 {[%clk 0:00:46.4]}
26... Rxe7 {[%clk 0:01:04.3]} 27. Bf1 {[%clk 0:00:45.6]} 27... Nf3 {[%clk
0:01:00.8]} 28. Ne2 {[%clk 0:00:39.2]} 28... Nd4 {[%clk 0:00:50.2]} 29. Nf4
{[%clk 0:00:32.7]} 29... Rxf4 {[%clk 0:00:27.5]} 30. Bxf4 {[%clk 0:00:31.9]}
30... Be5 {[%clk 0:00:27.3]} 31. Be3 {[%clk 0:00:25.9]} 31... Nf5 {[%clk
0:00:23.1]} 32. Bd2 {[%clk 0:00:24.2]} 32... Ng7 {[%clk 0:00:22.9]} 33. b4
{[%clk 0:00:19.9]} 33... cxb4 {[%clk 0:00:18.3]} 34. axb4 {[%clk 0:00:20.8]}
34... Nxh5 {[%clk 0:00:18.1]} 35. Bxh6 {[%clk 0:00:21.5]} 35... Kh7 {[%clk
0:00:13.3]} 36. Bg5 {[%clk 0:00:20.4]} 36... Rf7 {[%clk 0:00:12.3]} 37. Be3
{[%clk 0:00:19.1]} 37... Nf4 {[%clk 0:00:10]} 38. c5 {[%clk 0:00:19.3]} 38...
dxc5 {[%clk 0:00:08.9]} 39. bxc5 {[%clk 0:00:20.2]} 39... Nxd5 {[%clk
0:00:07.7]} 40. Bc4 {[%clk 0:00:20.4]} 40... Rd7 {[%clk 0:00:04.7]} 41. Bxd5
{[%clk 0:00:20.6]} 41... Rxd5 {[%clk 0:00:04.8]} 42. Rxb7+ {[%clk 0:00:21.2]}
42... Kg6 {[%clk 0:00:05.2]} 43. Rb6+ {[%clk 0:00:21.4]} 43... Kf5 {[%clk
0:00:05.2]} 44. Rxa6 {[%clk 0:00:21.7]} 44... Ke4 {[%clk 0:00:04.6]} 45. Kg2
{[%clk 0:00:21.8]} 45... Bd4 {[%clk 0:00:03.3]} 46. Ra4 {[%clk 0:00:21.9]} 46...
Ke5 {[%clk 0:00:01.2]} 47. Rxd4 {[%clk 0:00:21.8]} 47... Rxd4 {[%clk 0:00:01.6]}
48. Bxd4+ {[%clk 0:00:22.7]} 48... Kxd4 {[%clk 0:00:02.2]} 49. c6 {[%clk
0:00:23.2]} 49... Kd5 {[%clk 0:00:02.5]} 50. c7 {[%clk 0:00:23.7]} 50... Kd6
{[%clk 0:00:03.4]} 51. c8=Q {[%clk 0:00:24.1]} 51... Ke5 {[%clk 0:00:03.1]} 52.
Qg4 {[%clk 0:00:21.8]} 52... Kd6 {[%clk 0:00:02.9]} 53. h4 {[%clk 0:00:22.4]}
53... Kc7 {[%clk 0:00:03.3]} 54. h5 {[%clk 0:00:23]} 54... Kb7 {[%clk
0:00:04.2]} 55. h6 {[%clk 0:00:23.5]} 55... Ka7 {[%clk 0:00:05.1]} 56. Qe6
{[%clk 0:00:23.7]} 56... Ka8 {[%clk 0:00:03.4]} 57. h7 {[%clk 0:00:24.3]} 57...
Kb7 {[%clk 0:00:03.8]} 58. h8=Q {[%clk 0:00:24.1]} 58... Ka7 {[%clk 0:00:04.7]}
59. Qh7+ {[%clk 0:00:24.4]} 59... Ka8 {[%clk 0:00:04.5]} 60. Qe8# {[%clk
0:00:24.6]} 1-0

[Event "*** Titled Tuesday Blitz"]
[Site "Chess.com"]
[Date "2020.04.28"]
[Round "3"]
[White "IvanRadivojevic"]
[Black "kushagramohan"]
[Result "1-0"]
[WhiteElo "2491"]
[BlackElo "2691"]
[TimeControl "180+1"]
[EndTime "10:30:04 PDT"]
[Termination "IvanRadivojevic won on time"]

1. e4 {[%clk 0:03:00]} 1... e5 {[%clk 0:02:58.9]} 2. Nf3 {[%clk 0:02:59.7]} 2...
Nc6 {[%clk 0:02:59.5]} 3. Bc4 {[%clk 0:02:59.9]} 3... Bc5 {[%clk 0:02:59.1]} 4.
c3 {[%clk 0:03:00.3]} 4... Nf6 {[%clk 0:02:59.6]} 5. d4 {[%clk 0:03:00.7]} 5...
exd4 {[%clk 0:03:00.5]} 6. cxd4 {[%clk 0:03:01.6]} 6... Bb4+ {[%clk 0:03:00.5]}
7. Bd2 {[%clk 0:03:02.1]} 7... Bxd2+ {[%clk 0:02:55.6]} 8. Nbxd2 {[%clk
0:03:03]} 8... d5 {[%clk 0:02:56.3]} 9. exd5 {[%clk 0:03:03.9]} 9... Nxd5 {[%clk
0:02:57.2]} 10. Qb3 {[%clk 0:03:04.3]} 10... Be6 {[%clk 0:02:55.9]} 11. Qxb7
{[%clk 0:02:34.8]} 11... Ndb4 {[%clk 0:02:29.4]} 12. Bxe6 {[%clk 0:02:28.1]}
12... Rb8 {[%clk 0:02:15.7]} 13. Qxb8 {[%clk 0:02:23.5]} 13... Qxb8 {[%clk
0:02:14.2]} 14. Bb3 {[%clk 0:02:23.6]} 14... Nd3+ {[%clk 0:02:09.2]} 15. Ke2
{[%clk 0:02:22.6]} 15... Nf4+ {[%clk 0:02:09.4]} 16. Kf1 {[%clk 0:02:21.7]}
16... O-O {[%clk 0:02:01.1]} 17. g3 {[%clk 0:02:20.5]} 17... Qb5+ {[%clk
0:01:59.8]} 18. Bc4 {[%clk 0:02:20.6]} 18... Qxb2 {[%clk 0:01:48.4]} 19. Rb1
{[%clk 0:02:20.2]} 19... Qc3 {[%clk 0:01:43.2]} 20. gxf4 {[%clk 0:02:18.2]}
20... Nxd4 {[%clk 0:01:42.8]} 21. Bd5 {[%clk 0:01:38.3]} 21... Qd3+ {[%clk
0:01:25.7]} 22. Kg2 {[%clk 0:01:36.3]} 22... Nxf3 {[%clk 0:01:15.8]} 23. Bxf7+
{[%clk 0:01:26.6]} 23... Rxf7 {[%clk 0:01:12.6]} 24. Rb8+ {[%clk 0:01:26]} 24...
Rf8 {[%clk 0:01:09.3]} 25. Rxf8+ {[%clk 0:01:26.9]} 25... Kxf8 {[%clk
0:01:10.2]} 26. Nxf3 {[%clk 0:01:27.8]} 26... Qg6+ {[%clk 0:01:04.9]} 27. Kh3
{[%clk 0:01:23.9]} 27... Qc2 {[%clk 0:00:55.1]} 28. Kg3 {[%clk 0:01:20.8]} 28...
Qxa2 {[%clk 0:00:54.8]} 29. Rc1 {[%clk 0:01:21.3]} 29... Qf7 {[%clk 0:00:47.8]}
30. Ne5 {[%clk 0:01:20.5]} 30... Qe7 {[%clk 0:00:45.2]} 31. Rb1 {[%clk
0:01:16.2]} 31... g6 {[%clk 0:00:41.7]} 32. Rb7 {[%clk 0:01:13.2]} 32... a5
{[%clk 0:00:38.8]} 33. Ra7 {[%clk 0:01:12.8]} 33... Qb4 {[%clk 0:00:33.1]} 34.
Rxc7 {[%clk 0:01:08.7]} 34... a4 {[%clk 0:00:31.7]} 35. Ng4 {[%clk 0:01:05.9]}
35... a3 {[%clk 0:00:28]} 36. Nf6 {[%clk 0:01:01]} 36... a2 {[%clk 0:00:21.6]}
37. Nxh7+ {[%clk 0:00:47.9]} 37... Ke8 {[%clk 0:00:21.6]} 38. Nf6+ {[%clk
0:00:47.2]} 38... Kd8 {[%clk 0:00:21.7]} 39. Rd7+ {[%clk 0:00:47]} 39... Kc8
{[%clk 0:00:21.6]} 40. Ra7 {[%clk 0:00:22.3]} 40... Qc3+ {[%clk 0:00:21.6]} 41.
f3 {[%clk 0:00:20.3]} 41... a1=Q {[%clk 0:00:19.8]} 42. Rxa1 {[%clk 0:00:20.4]}
42... Qxa1 {[%clk 0:00:20.7]} 43. Ng4 {[%clk 0:00:18.6]} 43... Qg7 {[%clk
0:00:20.5]} 44. Ne5 {[%clk 0:00:17.6]} 44... Kc7 {[%clk 0:00:19.6]} 45. h4
{[%clk 0:00:17.3]} 1-0

[Event "*** Titled Tuesday Blitz"]
[Site "Chess.com"]
[Date "2020.04.28"]
[Round "3"]
[White "zmeeed67"]
[Black "aNaartjieZA"]
[Result "0-1"]
[WhiteElo "2385"]
[BlackElo "2591"]
[TimeControl "180+1"]
[EndTime "10:30:04 PDT"]
[Termination "aNaartjieZA won by resignation"]

1. d4 {[%clk 0:03:00.9]} 1... Nf6 {[%clk 0:02:59.7]} 2. c4 {[%clk 0:03:01.2]}
2... c5 {[%clk 0:02:59.9]} 3. d5 {[%clk 0:03:00.7]} 3... e5 {[%clk 0:03:00.1]}
4. Nc3 {[%clk 0:02:55.9]} 4... d6 {[%clk 0:03:00]} 5. e4 {[%clk 0:02:56.1]} 5...
Be7 {[%clk 0:03:00.1]} 6. f4 {[%clk 0:02:44.3]} 6... Nbd7 {[%clk 0:02:56.9]} 7.
Nf3 {[%clk 0:02:43.8]} 7... exf4 {[%clk 0:02:55.5]} 8. Bxf4 {[%clk 0:02:44.7]}
8... Nh5 {[%clk 0:02:55.2]} 9. Be3 {[%clk 0:02:44.1]} 9... g6 {[%clk 0:02:53.5]}
10. Be2 {[%clk 0:02:38.9]} 10... Bf6 {[%clk 0:02:53.1]} 11. O-O {[%clk
0:02:31.5]} 11... O-O {[%clk 0:02:49.7]} 12. Rb1 {[%clk 0:02:06.2]} 12... Ng7
{[%clk 0:02:45.1]} 13. a3 {[%clk 0:02:04.6]} 13... Ne5 {[%clk 0:02:41.3]} 14.
Nd2 {[%clk 0:02:04.1]} 14... Bg5 {[%clk 0:02:36.1]} 15. Bf2 {[%clk 0:01:57.8]}
15... h5 {[%clk 0:02:16.4]} 16. b4 {[%clk 0:01:55.7]} 16... b6 {[%clk
0:02:15.3]} 17. h3 {[%clk 0:01:21]} 17... Bd7 {[%clk 0:01:54.4]} 18. Qc2 {[%clk
0:00:58.8]} 18... f5 {[%clk 0:01:13.4]} 19. Nf3 {[%clk 0:00:51]} 19... Nxf3+
{[%clk 0:01:12.4]} 20. Bxf3 {[%clk 0:00:51.9]} 20... f4 {[%clk 0:01:04.2]} 21.
bxc5 {[%clk 0:00:49.4]} 21... bxc5 {[%clk 0:01:03.3]} 22. e5 {[%clk 0:00:38.6]}
22... Bf5 {[%clk 0:00:57.1]} 23. Ne4 {[%clk 0:00:34]} 23... Be7 {[%clk 0:00:49]}
24. exd6 {[%clk 0:00:28.1]} 24... Bxd6 {[%clk 0:00:47.7]} 25. Qc3 {[%clk
0:00:22.5]} 25... Bxe4 {[%clk 0:00:45.6]} 26. Bxe4 {[%clk 0:00:23.4]} 26... Nf5
{[%clk 0:00:44.8]} 27. Bxf5 {[%clk 0:00:19.1]} 27... Rxf5 {[%clk 0:00:43.5]} 28.
Rb7 {[%clk 0:00:20]} 28... Rf7 {[%clk 0:00:37.2]} 29. Rxf7 {[%clk 0:00:19]}
29... Kxf7 {[%clk 0:00:36.4]} 30. Rb1 {[%clk 0:00:15.6]} 30... Rb8 {[%clk
0:00:32.6]} 31. Rxb8 {[%clk 0:00:13.8]} 31... Qxb8 {[%clk 0:00:32.2]} 32. Bh4
{[%clk 0:00:07.8]} 32... Qb1+ {[%clk 0:00:29.5]} 33. Kf2 {[%clk 0:00:07]} 33...
Qf5 {[%clk 0:00:28.4]} 34. Qd2 {[%clk 0:00:04]} 34... g5 {[%clk 0:00:27.8]} 35.
Qb2 {[%clk 0:00:03.5]} 35... gxh4 {[%clk 0:00:27.2]} 36. Qb7+ {[%clk 0:00:03.9]}
36... Kg6 {[%clk 0:00:24.8]} 37. Qa8 {[%clk 0:00:01.6]} 37... Qc2+ {[%clk
0:00:23.9]} 38. Kf1 {[%clk 0:00:02.2]} 38... Qxc4+ {[%clk 0:00:23.6]} 39. Ke1
{[%clk 0:00:02.5]} 39... Qe4+ {[%clk 0:00:22.6]} 40. Kf1 {[%clk 0:00:02.3]}
40... Qe5 {[%clk 0:00:20.1]} 41. Qg8+ {[%clk 0:00:01.7]} 41... Kf6 {[%clk
0:00:20.3]} 42. Qh8+ {[%clk 0:00:01.8]} 42... Ke7 {[%clk 0:00:20.1]} 43. Qh7+
{[%clk 0:00:01.8]} 43... Kd8 {[%clk 0:00:20.4]} 44. Qg8+ {[%clk 0:00:02.2]}
44... Kc7 {[%clk 0:00:20.7]} 45. Qf7+ {[%clk 0:00:02.8]} 45... Kb6 {[%clk
0:00:21.1]} 46. Qd7 {[%clk 0:00:03.2]} 46... Qxd5 {[%clk 0:00:20.8]} 47. Qd8+
{[%clk 0:00:03.6]} 47... Kb5 {[%clk 0:00:20.6]} 48. a4+ {[%clk 0:00:02.2]} 48...
Kxa4 {[%clk 0:00:20.2]} 49. Qd7+ {[%clk 0:00:02.6]} 49... Kb3 {[%clk 0:00:20.4]}
50. Qxa7 {[%clk 0:00:01.5]} 50... Qd3+ {[%clk 0:00:19.6]} 51. Kg1 {[%clk
0:00:01.8]} 51... c4 {[%clk 0:00:20.1]} 52. Qb6+ {[%clk 0:00:01.9]} 52... Kc2
{[%clk 0:00:20.4]} 53. Qxd6 {[%clk 0:00:01.8]} 53... Qxd6 {[%clk 0:00:20.4]} 0-1